Workbook

Sheet Part A
B2: Online Assessment Questions S2 Level
B7: A relay cycling team consists of | P7: =ROUND(RAND()*(9-6)+6,0) -> 8 | Q7: people. | U7: Each person cycles | AC7: =1/P7 -> 0.125 | AD7: of the total distance of the race. | AV7: =(ROUND(RAND()*(20-5)+5,1))*P7 -> 121.6
B9: The race was | H9: =AV7 -> 121.6 | K9: km long.
B11: How far does each member of the team cycle ? | AD11: km | AV11: =AV7/P7 -> 15.2
BD13: Train Time | BJ13: Monday | BP13: Tuesday | BV13: Wednesday | CB13: Thursday
B14: The table below shows the number of passengers on trains at different times on four days. | BC14: =ROUND(RAND()*(6-2)+2,0) -> 4 | BD14: 11:00:00 | BJ14: =ROUND(RAND()*(50-15)+15,0) -> 41 | BP14: =ROUND(RAND()*(50-15)+15,0) -> 41 | BV14: =ROUND(RAND()*(50-15)+15,0) -> 30 | CB14: =ROUND(RAND()*(50-15)+15,0) -> 38
BD15: 12:00:00 | BJ15: =ROUND(RAND()*(50-15)+15,0) -> 28 | BP15: 25 | BV15: 30 | CB15: 37
F16: =BD13 -> Train Time | L16: =BJ13 -> Monday | R16: =BP13 -> Tuesday | X16: =BV13 -> Wednesday | AD16: =CB13 -> Thursday | BD16: 13:00:00 | BJ16: 32 | BP16: 20 | BV16: 48 | CB16: 25
F17: =BD14 -> 11:00:00 | L17: =BJ14 -> 41 | R17: =BP14 -> 41 | X17: =BV14 -> 30 | AD17: =CB14 -> 38 | BD17: 14:00:00 | BJ17: 23 | BP17: 40 | BV17: 34 | CB17: 42
F18: 12:00:00 | L18: 28 | R18: 25 | X18: 30 | AD18: 37 | BD18: 15:00:00 | BJ18: 36 | BP18: 34 | BV18: 33 | CB18: 30
F19: 13:00:00 | L19: 32 | R19: 20 | X19: 48 | AD19: 25 | BD19: =HLOOKUP(BD13,BD13:BI18,BC14) -> 13:00:00 | BJ19: =HLOOKUP(BJ13,BJ13:BO18,BC14) -> 32 | BP19: =HLOOKUP(BP13,BP13:BU18,BC14) -> 20 | BV19: =HLOOKUP(BV13,BV13:CA18,BC14) -> 48 | CB19: =HLOOKUP(CB13,CB13:CG18,BC14) -> 25
F20: 14:00:00 | L20: 23 | R20: 40 | X20: 34 | AD20: 42
F21: 15:00:00 | L21: 36 | R21: 34 | X21: 33 | AD21: 30
B23: What is the mean number of passengers on the | V23: =BD19 -> 13:00:00 | Y23: train on the four days ?
E25: Round your answer to the nearest person. | AD25: people | AV25: =ROUND(AVERAGE(BJ19:CG19),0) -> 31
B28: Tom draws a scale drawing of his room.
C30: Scale : | G30: 1 cm | J30: = | K30: =AW31 -> 2 cm | AW30: =ROUND(RAND()*(2-2)+2,0) -> 2 | AX30: cm
AE31: =AW32 -> 3 | AG31: cm | AW31: =CONCATENATE(AW30," ",AX30) -> 2 cm
AW32: =ROUND(RAND()*(5-3)+3,0) -> 3
AW33: =ROUND(RAND()*(2-1)+1,0)+AW32+0.5 -> 5.5
X35: =AW33 -> 5.5 | Z35: cm
B37: (a) What is the real life length and width of his room ? | Z37: Length | AH37: m | AV37: =AW30*AW32 -> 6
Z39: Width | AH39: m | AV39: =AW30*AW33 -> 11
B41: (b) What is the area of his room ? | Z41: Area | AH41: m2 | AV41: =AV37*AV39 -> 66
B44: Daniel solved a problem using his mathematical skills. | AX44: =ROUND(RAND()*(9-3)+3,0) -> 5 | AY44: =CHAR(RAND()*(122-112)+112) -> y | AZ44: + | BA44: =ROUND(RAND()*(9-3)+3,0) -> 5 | BB44: = | BC44: =AX44*AX47+BA44 -> 40
B45: His answer was | I45: =AX47 -> 7 | J45: .
B46: He started with a number | M46: =AY44 -> y
B47: then subtracted | I47: =BA44 -> 5 | J47: and finally divided by | S47: =AX44 -> 5 | T47: . | AX47: =ROUND(RAND()*(9-1)+1,0) -> 7
B49: What number | H49: =AY44 -> y | I49: did he start with ? | Y49: =AY44 -> y | Z49: = | AV49: =BC44 -> 40
C52: Eve bought a car for | L52: =BI53 -> 50000 | BH52: Year | BI52: Cost | BJ52: High | BK52: Low
BG53: =ROUND(RAND()*(10-4)+4,0) -> 10 | BH53: 0 | BI53: =ROUND(RAND()*(10-4)+4,0)*10000 -> 50000 | BJ53: =ROUNDUP(BI53,-3) -> 50000 | BK53: =ROUNDDOWN(BI53,-3) -> 50000 | BL53: =IF(BI53<$BI$53/2,BH53,0) -> 0
C54: The graph shows the estimated value | BH54: 1 | BI54: =ROUND(BI53*EXP(-0.2),-2) -> 40900 | BJ54: =ROUNDUP(BI54,-3) -> 41000 | BK54: =ROUNDDOWN(BI54,-3) -> 40000 | BL54: =IF(BI54<$BI$53/2,BH54,0) -> 0
C55: of car at the end of each year for the | BH55: 2 | BI55: =ROUND(BI54*EXP(-0.2),-2) -> 33500 | BJ55: 34000 | BK55: 33000 | BL55: 0 | BM55: =ROUND(BI54*(EXP(-0.2)),-2) -> 33500
C56: next 10 years. | BH56: 3 | BI56: 27400 | BJ56: 28000 | BK56: 27000 | BL56: 0 | BM56: 27400
BH57: 4 | BI57: 22400 | BJ57: 23000 | BK57: 22000 | BL57: 4 | BM57: 22400
C58: (a) About how much less will the value | BH58: 5 | BI58: 18300 | BJ58: 19000 | BK58: 18000 | BL58: 5 | BM58: 18300
C59: of Eve's car be after | N59: =BH64 -> 8 | O59: years. | BH59: 6 | BI59: 15000 | BJ59: 15000 | BK59: 15000 | BL59: 6 | BM59: 15000
BH60: 7 | BI60: 12300 | BJ60: 13000 | BK60: 12000 | BL60: 7 | BM60: 12300
I61: £ | BH61: 8 | BI61: 10100 | BJ61: 11000 | BK61: 10000 | BL61: 8 | BM61: 10100
BH62: 9 | BI62: 8300 | BJ62: 9000 | BK62: 8000 | BL62: 9 | BM62: 8300
C63: (b) After how many full years will | BH63: 10 | BI63: 6800 | BJ63: 7000 | BK63: 6000 | BL63: 10 | BM63: 6800
C64: the value of Eve's car be approximately | BH64: =HLOOKUP(BH52,BH52:BH63,BG53) -> 8 | BI64: =HLOOKUP(BI52,BI52:BI63,BG53) -> 10100 | BJ64: =HLOOKUP(BJ52,BJ52:BJ63,BG53) -> 11000 | BK64: =HLOOKUP(BK52,BK52:BK63,BG53) -> 10000 | BL64: 8 | BO64: =HLOOKUP(BO58,BO58:BT63,BB59) ->  | BU64: =HLOOKUP(BU58,BU58:BZ63,BB59) ->  | CA64: =HLOOKUP(CA58,CA58:CF63,BB59) -> 
C65: half its original value ? | BJ65: =BI53-BJ64 -> 39000 | BK65: =BI53-BK64 -> 40000 | BL65: 4
N67: years
BI70: =ROUND(RAND()*(2000-1960)+1960,0) -> 1994 | BJ70: =BI70+1 -> 1995
C71: The table below shows some information about people in France in | AD71: =BI70 -> 1994 | AG71: and | AI71: =BJ70 -> 1995 | AL71: . | AV71: =ROUND(RAND()*(190-70)+70,1) -> 146.2
AV72: =AV71+ROUND(RAND()*(2-0.5)+0.5,1) -> 147.4
X73: =AD71 -> 1994 | AD73: =AI71 -> 1995 | AV73: =ROUND(RAND()*(52-47)+47,1) -> 49.7 | AY73: %
F74: Total population (millions) | X74: =AV71 -> 146.2 | AD74: =AV72 -> 147.4 | AV74: =AV73+ROUND(RAND()*(2-0.5)+0.5,1) -> 50.3 | AY74: %
F75: Male popoulation ( % of total population) | X75: =AV75 -> 49.7% | AD75: =AV76 -> 50.3% | AV75: =CONCATENATE(AV73,AY73) -> 49.7%
AV76: =CONCATENATE(AV74,AY74) -> 50.3%
C77: (a) The total population in the year | R77: =AD71 -> 1994 | U77: was | W77: =AV71*1000000 -> 146200000 | AC77: people.
D78: How many more people were there in the total population in the year | AF78: =AI71 -> 1995 | AI78: ? | AP78: people | AV78: =(AV72-AV71)*1000000 -> 1200000
C80: ="(b) What percentage of the total population in the year "&AD71 -> (b) What percentage of the total population in the year 1994 | AC80: were female ? | AN80: % | AV80: =100-AV73 -> 50.3
P84: =AW91 -> 128
M85: =AV90 -> r | U85: =AV91 -> x
N87: =AW90 -> 75
C90: The lines marked | O90: in this diagram are parallel. | AV90: =CHAR(RAND()*(117-112)+112) -> r | AW90: =ROUND(RAND()*(79-62)+62,0) -> 75
AV91: =CHAR(RAND()*(122-118)+118) -> x | AW91: =ROUND(RAND()*(135-121)+121,0) -> 128
C92: Work out the values of | M92: =AV90 -> r | N92: and | P92: =AV91 -> x | Q92: . | T92: q | U92: = | Y92: o | AV92: =180-N87 -> 105
T93: v | U93: = | Y93: o | AV93: =180-AW91 -> 52

Sheet Part_B
B2: Online Assessment Questions S2
B7: Mr Jenning's car should be serviced after it has gone | Y7: =AV7 -> 17000 | AC7: miles. | AI7: Service after | AV7: =(ROUND(RAND()*(18-8)+8,0))*1000 -> 17000 | AZ7: miles
AI8: =AV9 -> 17000 miles | AV8: =AV7-AV7*ROUND(RAND()*(0.8-0.2)+0.2,3) -> 6936
B9: The car has gone | J9: =AV8 -> 6936 | N9: miles. | AV9: =CONCATENATE(AV7," ",AZ7) -> 17000 miles
B11: How many more miles can it go before it should be serviced ? | AD11: miles | AV11: =AV7-AV8 -> 10064
AV13: =ROUND(RAND()*(3-1)+1,0) -> 2 | AW13: blue | AX13: yellow | AY13: green
B14: Patrick has a bag of marbles. | AW14: orange | AX14: blue | AY14: red
AW15: purple | AX15: black | AY15: silver
B16: ="There are an equal number of "&AW16&" , "&AX16&" , "&AY16&" marbles in the bag." -> There are an equal number of orange , blue , red marbles in the bag. | AW16: =HLOOKUP(AW13,AW13:AW15,AV13) -> orange | AX16: =HLOOKUP(AX13,AX13:AX15,AV13) -> blue | AY16: =HLOOKUP(AY13,AY13:AY15,AV13) -> red
B18: Patrick chooses a marble at random.
B20: ="What is the probability that it is NOT a "&AW16&" marble ?" -> What is the probability that it is NOT a orange marble ? | AH20: Fraction format eg 1/4 | AV20: 0.6666666667
B23: ="(a) Paul has a bag of apples." -> (a) Paul has a bag of apples. | AV23: =ROUND(RAND()*(9-3)+3,0) -> 3
AV24: =CHAR(RAND()*(102-97)+97) -> b
B25: You cannot see how many apples are in the bag.
B27: Call the number of apples in Paul's bag | R27: =AV24 -> b | S27: . | T27: Paul puts | X27: =AV23 -> 3 | Y27: more apples into his bag.
B29: Write an expression for the number of apples in Paul's now. | AH29: pencils | AV29: =CONCATENATE(AV24,"+",AV23) -> b+3
B32: ="(b) Linda has "&AV32&" boxes of pencils." -> (b) Linda has 6 boxes of pencils. | AV32: =ROUND(RAND()*(9-3)+3,0) -> 6
AV33: =CHAR(RAND()*(122-112)+112) -> s
B34: There the same number of pencils in each of Linda's boxes.
B36: Call the number of pencils in each of Linda's boxes | X36: =AV33 -> s | Y36: .
B38: ="Write an expression for the number of pencils in Linda's "&AV32&" boxes." -> Write an expression for the number of pencils in Linda's 6 boxes. | AH38: pencils | AV38: =CONCATENATE(AV32,AV33) -> 6s
B41: Calculate | AW41: =ROUND(RAND()*(9-3)+3,0) -> 3
G42: =AW41 -> 3 | H42: - | I42: =AW42 -> 5 | AW42: =2*ROUND(RAND()*(4-1)+1,0)+1 -> 5
I43: =AW43 -> 7 | AW43: =AW42+2 -> 7
V46: answer | Z46: = | AV46: =AW41-(AW42/AW43) -> 2.285714286
B49: ="Bernadette works part-time in a Factory. She earns £ "&AV49&" for every hour she works." -> Bernadette works part-time in a Factory. She earns £ 16.89 for every hour she works. | AV49: =(ROUND(RAND()*(18-8)+8,2)) -> 16.89
AV50: =ROUND(RAND()*(6-3)+3,0) -> 4
B51: ="She works "&AV50&" hours on Wednesday and "&AV51&" hours on Frday." -> She works 4 hours on Wednesday and 2 hours on Frday. | AV51: =ROUND(RAND()*(4-2)+2,0) -> 2
B53: How much does Bernadette earn altogether ? | AA53: £ | AV53: =AV49*(AV50+AV51) -> 101.34
B56: What number goes in the box ? | AW56: =ROUND(RAND()*(10-3)+3,0)*AW57 -> 2.5
AW57: =ROUND(RAND()*(4-1)*1,0)+0.5 -> 0.5
G58: =AW56 -> 2.5 | J58: ÷ | O58: = | Q58: =AW57 -> 0.5 | AW58: =AW56/AW57 -> 5
M62: Fruit Sale
M64: Melon | R64: Apple | W64: Orange | AB64: Bananna | AG64: Grapes
B67: ="Richard wants to choose "&AW69&" different pieces of fruit." -> Richard wants to choose 3 different pieces of fruit.
AW69: =ROUND(RAND()*(4-2)+2,0) -> 3
B71: How many different combinations could he choose ? | AV71: =COMBIN(5,AW69) -> 10

Sheet Part_C
B2: Online Assessment Questions S2
B7: Using the number fact below to help you to fill in the gaps. | AV7: =(ROUND(RAND()*(399-123)+123,0)) -> 180 | AW7: =ROUND(RAND()*(1-0)+0,0) -> 0
AV8: =ROUND(RAND()*(8-5)+5,0)*AW12 -> 14
L9: =AV7 -> 180 | O9: x | P9: =AV8 -> 14 | S9: = | T9: =AV7*AV8 -> 2520 | AV9: =IF(AW7=1,AV7+1,AV7-1) -> 179
B11: (a) | D11: =AV9 -> 179 | G11: x | H11: =AV8 -> 14 | K11: = | AV11: =AV8*AV9 -> 2506
AW12: =ROUND(RAND()*(6-2)+2,0) -> 2
B13: (b) | D13: =AW13*AV9 -> 1253 | G13: ÷ | K13: = | L13: =AV9 -> 179 | AW13: =AV8/AW12 -> 7
AY14: Fraction | AZ14: Percentage
AV15: 20 | AW15: =AZ22 -> 50 | AX15: =ROUND(RAND()*(8-2)+2,0) -> 2 | AY15: 0.5 | AZ15: =AY15*100 -> 50
B16: Fill in the gaps. The first pair is done for you. | AV16: =AV15*2 -> 40 | AW16: =ROUND(RAND()*(15-3)+3,0)*10 -> 120 | AY16: 0.1 | AZ16: =AY16*100 -> 10
AV17: =AV15/100*AV16 -> 8 | AW17: =AW15/100*AW16 -> 60 | AY17: 0.25 | AZ17: 25
F18: =AV17&" is "&AV15&" % of "&AV16 -> 8 is 20 % of 40 | O18: =AV16&" is "&AV18&" % of "&AV17 -> 40 is 500 % of 8 | AV18: =AV16/AV17*100 -> 500 | AW18: =AW16/AW17*100 -> 200 | AY18: =1/5 -> 0.2 | AZ18: 20
AY19: 0.4 | AZ19: 40
AY20: =1/10 -> 0.1 | AZ20: 10
F21: =AW17&" is " -> 60 is | K21: % of | M21: =AW16 -> 120 | P21: =AW16&" is " -> 120 is | V21: % of | X21: =AW17 -> 60 | AY21: =4/5 -> 0.8 | AZ21: 80
AY22: =HLOOKUP(AY14,AY14:AZ21,AX15) -> 0.5 | AZ22: =HLOOKUP(AZ14,AY14:AZ21,AX15) -> 50
B25: Frances solved a problem using her mathematical skills. | AW25: =ROUND(RAND()*(9-2)+2,0) -> 5 | AX25: =1/AW25 -> 0.2 | AY25: =CHAR(RAND()*(122-112)+112) -> w | AZ25: + | BA25: =ROUND(RAND()*(9-3)+3,0) -> 4 | BB25: = | BC25: =AW28*AX25-BA25 -> -2
B26: ="Her answer was "&AW28&" ." -> Her answer was 10 . | J26: .
B27: She started with a number | M27: =AY25 -> w
B28: ="then added "&BA25&" and finally multiply by "&AW25&" ." -> then added 4 and finally multiply by 5 . | AW28: =ROUND(RAND()*(5-2)+2,0)*AW25 -> 10 | AX28: =AW28*AX25 -> 2
B30: What number | H30: =AY25 -> w | I30: did she start with ? | Y30: =AY25 -> w | Z30: = | AV30: =BC25 -> -2
B33: ="(a) Caitlin and Paul have some blocks that are cuboidal in shape." -> (a) Caitlin and Paul have some blocks that are cuboidal in shape. | AI33: =AX35 -> 1 cm | AV33: =ROUND(RAND()*(9-2)+2,0) -> 9 | AW33: cm | AX33: =CONCATENATE(AV33," ",AW33) -> 9 cm
AI34: =AX34 -> 9 cm | AV34: =AV33 -> 9 | AW34: cm | AX34: =CONCATENATE(AV34," ",AW34) -> 9 cm
B35: ="They measure "&AV33&" cm by "&AV34&" cm by "&AV35&" cm." -> They measure 9 cm by 9 cm by 1 cm. | AD35: =AX33 -> 9 cm | AV35: 1 | AW35: cm | AX35: 1 cm
B37: Caitlin makes the smallest cube she can with the blocks.
B39: How many blocks does she use to the cube ? | AH39: blocks | AV39: =AV33 -> 9
B41: What is the volume of the cube ? | AH41: cm3 | AV41: =POWER(AV39,3) -> 729
B43: ="(b) Paul begins to make up a bigger cube with the blocks." -> (b) Paul begins to make up a bigger cube with the blocks.
B45: He uses four blocks to make the base of his cube.
B49: How many blocks does Paul use altogether to make his cube ? | AH49: blocks | AV49: =4*2*AV39 -> 72
B52: Fill in the gaps to complete the mathematical sentences.
B54: odd number + odd number = | R54: number | AV54: even
B56: even number + | L56: number = odd number | AV56: odd
B58: even number - even number = | R58: number | AV58: even
B60: odd number - | L60: number = odd number | AV60: even
B62: odd number x odd number = | R62: number | AV62: odd
B64: odd number x | L64: number = even number | AV64: even
BC66: =ROUND(RAND()*(5-1)+1,0) -> 4 | BD66: Day | BJ66: =L70 -> 07:00 - 07:59 | BP66: =R70 -> 08:00 - 08:59 | BV66: =X70 -> 09:00 - 09:59 | CB66: =AD70 -> 10:00 - 10:59 | CH66: =AJ70 -> 11:00 - 11:59
B67: The council records the number of cars passing a busy road junction each hour, over a five day period. | BC67: =ROUND(RAND()*(5-2)+2,0) -> 2 | BD67: Monday | BJ67: =IF(CO67=OR(CP67,CQ67,CR67,CS67),101+ROUND(RAND()*(3-1)+1,0),CO67) -> 87 | BP67: =IF(CP67=CO67,101,CP67) -> 94 | BV67: =IF(OR(CO67-CQ67=0,CP67-CQ67=0),102,CQ67) -> 78 | CB67: =IF(OR(CO67-CR67=0,CP67-CR67=0,CQ67-CR67=0),103,CR67) -> 99 | CH67: =IF(OR(CO67-CS67=0,CP67-CS67=0,CQ67-CS67=0,CR67-CS67=0),104,CS67) -> 104 | CO67: =ROUND(RAND()*(100-40)+40,0) -> 87 | CP67: =ROUND(RAND()*(100-40)+40,0) -> 94 | CQ67: 78 | CR67: =ROUND(RAND()*(100-40)+40,0) -> 99 | CS67: 99
B68: The results are shwn below. | BD68: Tuesday | BJ68: =IF(CO68=OR(CP68,CQ68,CR68,CS68),101+ROUND(RAND()*(3-1)+1,0),CO68) -> 79 | BP68: =IF(CP68=CO68,101,CP68) -> 81 | BV68: =IF(OR(CO68-CQ68=0,CP68-CQ68=0),102,CQ68) -> 97 | CB68: =IF(OR(CO68-CR68=0,CP68-CR68=0,CQ68-CR68=0),103,CR68) -> 73 | CH68: =IF(OR(CO68-CS68=0,CP68-CS68=0,CQ68-CS68=0,CR68-CS68=0),104,CS68) -> 104 | CO68: =ROUND(RAND()*(100-40)+40,0) -> 79 | CP68: 81 | CQ68: 97 | CR68: 73 | CS68: 81
BD69: Wednesday | BJ69: 80 | BP69: 95 | BV69: 69 | CB69: 57 | CH69: 81 | CO69: 80 | CP69: 95 | CQ69: 69 | CR69: 57 | CS69: 81
F70: =BD66 -> Day | L70: 07:00 - 07:59 | R70: 08:00 - 08:59 | X70: 09:00 - 09:59 | AD70: 10:00 - 10:59 | AJ70: 11:00 - 11:59 | BD70: Thursday | BJ70: 73 | BP70: 70 | BV70: 95 | CB70: 62 | CH70: 74 | CO70: 73 | CP70: 70 | CQ70: 95 | CR70: 62 | CS70: 74
F71: Monday | L71: =BJ67 -> 87 | R71: =BP67 -> 94 | X71: =BV67 -> 78 | AD71: =CB67 -> 99 | AJ71: =CH67 -> 104 | AV71: =BD72 -> Monday | BD71: Friday | BJ71: 55 | BP71: 97 | BV71: 70 | CB71: 93 | CH71: 50 | CO71: 55 | CP71: 97 | CQ71: 70 | CR71: 93 | CS71: 50
F72: Tuesday | L72: =BJ68 -> 79 | R72: =BP68 -> 81 | X72: =BV68 -> 97 | AD72: =CB68 -> 73 | AJ72: =CH68 -> 104 | AV72: =IF(AW72=1,"largest","smallest") -> smallest | AW72: =ROUND(RAND()*(1-0)+0,0) -> 0 | BD72: =HLOOKUP(BD66,BD66:BI71,BC67) -> Monday | BJ72: =HLOOKUP(BJ66,BJ66:BO71,BC67) -> 87 | BP72: =HLOOKUP(BP66,BP66:BU71,BC67) -> 94 | BV72: =HLOOKUP(BV66,BV66:CA71,BC67) -> 78 | CB72: =HLOOKUP(CB66,CB66:CG71,BC67) -> 99 | CH72: =HLOOKUP(CH66,CH66:CM71,BC67) -> 104 | CO72: 40 | CP72: 95 | CQ72: 74 | CR72: 82 | CS72: 53
F73: Wednesday | L73: 80 | R73: 95 | X73: 69 | AD73: 57 | AJ73: 81 | AV73: =IF(AW72=1,LARGE(BJ72:CM72,1),SMALL(BJ72:CM72,1)) -> 78 | BD73: =IF(BC66=1,BJ66,IF(BC66=2,BP66,IF(BC66=3,BV66,IF(BC66=4,CB66,IF(BC66=5,CH66,0))))) -> 10:00 - 10:59 | BJ73: =IF(BC66=1,ROUND(AVERAGE(BJ67:BO71),0),IF(BC66=2,ROUND(AVERAGE(BP67:BU71),0),IF(BC66=3,ROUND(AVERAGE(BV67:CA71),0),IF(BC66=4,ROUND(AVERAGE(CB67:CG71),0),IF(BC66=5,ROUND(AVERAGE(CH67:CM71),0),0))))) -> 77
F74: Thursday | L74: 73 | R74: 70 | X74: 95 | AD74: 62 | AJ74: 74 | AV74: =IF(AV73=BJ72,BJ66,IF(AV73=BP72,BP66,IF(AV73=BV72,BV66,IF(AV73=CB72,CB66,IF(AV73=CH72,CH66,0))))) -> 09:00 - 09:59
F75: Friday | L75: 55 | R75: 97 | X75: 70 | AD75: 93 | AJ75: 50
B77: ="In which hour-long period did the "&AV72&" number of cars pass the junction on "&AV71&" ?" -> In which hour-long period did the smallest number of cars pass the junction on Monday ?
AV78: =BD73 -> 10:00 - 10:59
B79: ="Calculate the mean number of cars for the hour-long period "&AV78&" to the nearest car." -> Calculate the mean number of cars for the hour-long period 10:00 - 10:59 to the nearest car. | AV79: =BJ73 -> 77
B82: ="This is what you need to make a Indian spiced sherpherd's pie." -> This is what you need to make a Indian spiced sherpherd's pie.
AW83: =ROUND(RAND()*(3-1)+1,0) -> 2
C84: ="Serves "&AV84&" people" -> Serves 4 people | AC84: ="Serves "&AW84&" people" -> Serves 10 people | AV84: =ROUND(RAND()*(2-1)+1,0)*2 -> 4 | AW84: =AV84*AW85 -> 10
AW85: =ROUND(RAND()*(4-1)+1,0)+0.5 -> 2.5
C86: =AV86 -> 500 | F86: g lean minced lamb | AD86: =AW86 -> 1250 | AG86: g lean minced lamb | AV86: 500 | AW86: =AV86*$AW$85 -> 1250
C87: =AV87 -> 1 | F87: onion | AG87: onion | AV87: 1 | AW87: =AV87*$AW$85 -> 2.5
C88: 4 | F88: carrots | AG88: carrots | AV88: 4 | AW88: 10
C89: 2 | F89: tablespoons of garma masla | AG89: tablespoons of garma masla | AV89: 2 | AW89: 5
C90: 500 | F90: ml chicken stock | AG90: ml chicken stock | AV90: 500 | AW90: 1250
C91: 200 | F91: peas | AD91: =AW91 -> 500 | AG91: peas | AV91: 200 | AW91: 500
C92: 800 | F92: potatoes | AG92: potatoes | AV92: 800 | AW92: 2000
C93: 1 | F93: teaspoons turmeric | AG93: teaspoons turmeric | AV93: 1 | AW93: 2.5
C94: 0.5 | F94: lemon | AG94: lemon | AV94: 0.5 | AW94: 1.25
